bitfinex-derivatives/quotes_ETHF0:USTF0_20240905
["timestamp","ask_amount","ask_price","bid_price","bid_amount"]
[1725558612645,4.62878334,2389.7,2389.6,0.42480312]
[1725558614345,5.04730334,2389.7,2389.6,0.42480312]
[1725558615144,4.62878334,2389.7,2389.6,0.42480312]
[1725558615351,5.04730334,2389.7,2389.6,0.42480312]
[1725558616245,5.25930334,2389.7,2389.6,0.42480312]
[1725558618349,4.84078334,2389.7,2389.6,0.42480312]
[1725558618848,9.44410334,2389.7,2389.6,0.42480312]
[1725558619549,9.44410334,2389.7,2389.6,0.00628312]
[1725558619767,1.04644,2389.4,2388.9,0.41866]
[1725558619947,4.25438,2389.1,2388.7,4.146]
[1725558620147,0.3834,2389.0,2388.9,0.41866]
[1725558620449,1.42678334,2389.0,2388.9,0.41866]
[1725558620761,5.61238334,2389.0,2388.9,0.41866]
[1725558621654,6.03102334,2389.0,2388.9,0.41866]
[1725558621958,6.03104334,2389.0,2388.8,0.41867]
[1725558622252,1.84544334,2389.0,2388.9,0.41866]
[1725558622450,1.42678334,2389.0,2388.9,0.41866]
[1725558623058,1.80508334,2389.0,2388.9,0.41866]
[1725558623957,5.99068334,2389.0,2388.9,0.41866]
[1725558624155,1.80508334,2389.0,2388.9,0.41866]
[1725558625148,2.01708334,2389.0,2388.9,0.41866]
[1725558626152,2.43572334,2389.0,2388.8,0.41866]
[1725558626355,2.43572334,2389.0,2388.7,0.00628312]
[1725558626356,0.41866,2388.9,2388.7,0.00628312]
[1725558626557,0.41868,2388.8,2388.7,0.00628312]
[1725558626760,8.85626334,2388.8,2388.7,0.00628312]
[1725558627254,9.90296334,2388.8,2388.7,0.00628312]
[1725558627665,9.90296334,2388.8,2388.3,3.10261666]
[1725558627666,0.41875,2388.4,2388.3,3.10261666]
[1725558627962,0.63075,2388.4,2388.3,0.41877]
[1725558628352,0.5805,2388.4,2388.3,0.41877]
[1725558628558,0.212,2388.4,2388.3,0.41877]
[1725558632454,0.212,2388.4,2388.3,6.69981]
[1725558633365,0.212,2388.4,2388.3,12.69981]
[1725558633755,0.212,2388.4,2388.3,6.69981]
[1725558634461,0.212,2388.4,2388.3,5.65289]
[1725558636554,0.212,2388.4,2388.3,4.60597]
[1725558636757,0.212,2388.4,2388.3,0.41877]
[1725558637157,0.212,2388.5,2388.4,0.41875]
[1725558637362,0.63073,2388.5,2388.4,0.41875]
[1725558637559,0.212,2388.5,2388.4,0.41875]
[1725558639366,0.212,2388.5,2388.4,7.49595]
[1725558639562,0.212,2388.5,2388.4,9.58971]
[1725558640258,0.212,2388.5,2388.4,8.54283]
[1725558640454,0.212,2388.5,2388.4,0.41875]
[1725558642365,0.41875,2388.4,2388.3,0.41875]
[1725558642568,0.41877,2388.3,2388.2,3.62657]
[1725558642764,0.3883,2388.3,2388.2,3.62657]
[1725558643166,0.6003,2388.3,2388.2,3.62657]
[1725558644668,1.01907,2388.3,2388.2,3.62657]
[1725558644869,0.6003,2388.3,2388.2,3.62657]
[1725558645171,1.01907,2388.3,2388.2,3.62657]
[1725558645862,0.6003,2388.3,2388.2,3.62657]
[1725558646262,1.01907,2388.3,2388.2,3.62657]
[1725558646468,0.6003,2388.3,2388.2,3.62657]
[1725558647361,1.01907,2388.3,2388.2,3.62657]
[1725558647767,0.6003,2388.3,2388.2,3.62657]
[1725558648266,0.6003,2388.3,2388.2,6.51657]
[1725558650763,0.212,2388.3,2388.2,6.51657]
[1725558651070,0.212,2388.3,2388.2,18.79771]
[1725558651274,0.212,2388.3,2388.2,12.79771]
[1725558651665,0.212,2388.3,2388.2,18.79771]
[1725558654766,0.212,2388.3,2388.2,12.79771]
[1725558655266,0.212,2388.7,2388.6,0.41871]
[1725558657274,0.212,2388.7,2388.4,2.89]
[1725558657481,3.4198,2388.7,2388.4,0.41874]
[1725558657774,0.41877,2388.3,2388.1,0.00628312]
[1725558657974,0.3636,2388.2,2388.1,0.42508312]
[1725558658367,0.3636,2388.2,2388.1,4.36209312]
[1725558659371,0.3636,2388.2,2388.1,3.31508312]
[1725558659675,0.3636,2388.2,2388.1,4.36209312]
[1725558660067,0.3636,2388.2,2388.1,8.54929312]
[1725558660262,0.3771,2388.6,2388.5,0.41873]
[1725558660464,0.3771,2388.6,2388.5,3.30873]
[1725558660875,0.5756,2388.7,2388.6,0.41871]
[1725558661078,0.212,2388.7,2388.6,5.72009]
[1725558661377,0.212,2388.9,2388.8,1.46538]
[1725558661675,0.212,2389.1,2389.0,2.51186]
[1725558661869,0.212,2389.1,2389.0,8.60966]
[1725558662171,0.212,2389.1,2389.0,18.79526]
[1725558662772,0.212,2389.1,2389.0,8.54085]
[1725558663073,0.212,2389.1,2389.0,11.74865]
[1725558663574,0.212,2389.1,2389.0,17.74865]
[1725558663767,0.00628312,2389.2,2389.1,2.51177]
[1725558663968,0.00628312,2389.2,2389.1,7.05707]
[1725558664170,0.00628312,2389.2,2389.1,13.05707]
[1725558664371,3.12e-06,2389.2,2389.1,13.05707]
[1725558667579,3.12e-06,2389.2,2389.1,13.36437071]
[1725558668480,0.362,2389.8,2389.7,3.30852]
[1725558670575,0.362,2389.8,2389.7,8.53963]
[1725558670775,0.00628312,2390.0,2389.9,0.41849]
[1725558670976,0.00628312,2390.0,2389.9,8.60873]
[1725558671278,3.12e-06,2390.0,2389.9,12.79273]
[1725558671479,0.3664,2390.2,2390.1,1.46458]
[1725558671675,0.3664,2390.2,2390.1,4.35458]
[1725558671977,0.3664,2390.2,2390.1,8.53858]
[1725558672379,0.3678,2390.7,2390.1,8.12013]
[1725558672680,0.3678,2390.7,2390.6,3.30836]
[1725558672986,0.76918312,2390.9,2390.8,0.41833]
[1725558673279,0.39638312,2390.9,2390.8,0.41833]
[1725558673484,0.39638312,2390.9,2390.8,3.30833]
[1725558674187,0.00628312,2390.9,2390.8,4.35416]
[1725558674382,0.00628312,2390.9,2390.8,11.74436]
[1725558674684,0.21301804,2392.2,2391.2,1.04564]
[1725558674884,0.3901,2391.9,2391.8,2.89]
[1725558675082,0.3901,2391.9,2391.8,3.30815]
[1725558675679,0.3901,2391.9,2391.8,2.89]
[1725558676384,0.00628312,2392.1,2392.0,0.41812]
[1725558676588,0.00628312,2392.1,2392.0,3.30812]
[1725558676790,0.00628312,2392.1,2392.0,7.48892]
[1725558677179,0.00628312,2392.1,2392.0,0.41812]
[1725558677689,0.00628312,2392.1,2391.9,3.30812]
[1725558677988,0.00628312,2392.1,2392.0,0.41812]
[1725558678792,0.00628312,2392.1,2391.9,3.30813]
[1725558678990,0.00628312,2392.1,2391.9,2.89]
[1725558679290,0.00628312,2392.1,2391.9,3.30812]
[1725558679799,0.00628312,2392.1,2391.9,3.30813]
[1725558679982,0.00628312,2392.1,2392.0,0.41812]
[1725558682297,0.00628312,2392.1,2391.9,3.30812]
[1725558682494,0.00628312,2392.1,2391.9,3.30813]
[1725558682683,0.42438312,2392.1,2391.9,2.89]
[1725558683195,0.42438312,2392.1,2391.9,3.30813]
[1725558683389,0.41812,2392.0,2391.9,2.89]
[1725558683589,0.42439312,2392.1,2391.9,3.30813]
[1725558683787,0.42439312,2392.1,2391.9,2.89]
[1725558683993,0.41812,2392.0,2391.9,2.89]
[1725558684188,0.42439312,2392.1,2391.9,3.30813]
[1725558684383,0.41812,2392.0,2391.9,2.89]
[1725558685196,0.00628312,2392.1,2391.9,2.89]
[1725558685397,0.41812,2392.0,2391.9,2.89]
[1725558685892,0.41813,2392.0,2391.8,3.62595]
[1725558686088,0.00628312,2392.1,2392.0,0.41812]
[1725558686291,0.3911,2392.4,2392.0,4.59892]
[1725558686596,0.3911,2392.4,2392.3,3.30807]
[1725558686993,0.3911,2392.4,2392.3,7.48807]
[1725558687291,0.00628312,2392.6,2392.3,10.2778]
[1725558687483,0.00628312,2392.6,2392.5,3.30803]
[1725558687889,0.00628312,2392.6,2392.5,7.48803]
[1725558688095,0.00628312,2392.6,2392.3,3.41402976]
[1725558688396,0.00628312,2392.6,2392.5,2.89]
[1725558688593,0.00628312,2392.6,2392.5,3.30803]
[1725558689492,0.00628312,2392.6,2392.5,2.89]
[1725558689889,0.00628312,2392.6,2392.3,3.2078]
[1725558690085,7.39408312,2392.6,2392.0,6.0978]
[1725558690286,0.41809,2392.2,2392.0,2.89]
[1725558690485,0.41812,2392.0,2391.8,2.89]
[1725558690890,0.7534,2392.1,2391.8,2.89]
[1725558690891,0.41814,2391.9,2391.8,2.89]
[1725558691091,0.41813,2392.0,2391.8,2.89]
[1725558691293,0.41814,2391.9,2391.8,2.89]
[1725558691491,0.7534,2392.1,2391.8,2.89]
[1725558691693,0.41812,2392.0,2391.8,2.89]
[1725558691896,0.7534,2392.1,2391.6,0.00628312]
[1725558692099,0.41817,2391.7,2391.6,0.00628312]
[1725558692591,4.1816,2391.7,2391.6,0.00628312]
[1725558692793,4.59977,2391.7,2391.6,0.00628312]
[1725558693096,4.1816,2391.7,2391.6,0.00628312]
[1725558693993,4.1816,2391.7,2391.3,3.2078]
[1725558694193,0.41822,2391.5,2391.1,0.41827]
[1725558694496,4.25324,2391.7,2391.0,3.2078]
[1725558694692,0.3583,2391.4,2391.0,3.2078]
[1725558694893,0.3583,2391.4,2390.6,3.86]
[1725558694894,0.41828,2391.1,2390.7,0.41834]
[1725558695092,0.00626946,2391.1,2390.7,0.00626946]
[1725558695395,0.41833,2390.8,2390.7,0.00626946]
[1725558695692,3.2078,2390.8,2390.2,3.2078]
[1725558695889,7.47076946,2391.1,2390.2,0.41842]
[1725558695890,0.41837,2390.6,2390.2,0.41842]
[1725558696094,3.9565,2390.7,2390.2,0.41842]
[1725558696288,0.41836,2390.6,2390.2,0.41842]
[1725558696694,0.41838,2390.5,2390.2,0.00626946]
[1725558696896,3.9565,2390.7,2390.2,0.42469946]
[1725558697103,0.41837,2390.6,2390.2,0.42469946]
[1725558697494,0.41842,2390.3,2390.2,0.00626946]
[1725558697890,4.60242,2390.3,2390.2,0.00626946]
[1725558698503,0.41839,2390.5,2390.2,0.00626946]
[1725558698903,0.4184,2390.4,2390.2,0.00626946]
[1725558699099,0.41842,2390.3,2390.2,0.00626946]
[1725558700099,0.41847,2390.1,2389.8,7.4863]
[1725558700305,0.41848,2390.0,2389.8,3.2078]
[1725558700697,0.41848,2390.0,2389.7,0.41852]
[1725558701499,0.41848,2390.0,2389.8,0.4185]
[1725558701699,0.41849,2389.9,2389.6,0.42479946]
[1725558702401,0.41848,2390.0,2389.7,0.41851]
[1725558702796,3.2078,2390.1,2389.7,0.41851]
[1725558703008,0.41849,2389.9,2389.7,0.41851]
[1725558703213,0.41849,2389.9,2389.6,0.00626946]
[1725558703507,0.41849,2389.9,2389.6,0.42479946]
[1725558703707,0.41852,2389.7,2389.6,0.00626946]
[1725558703903,0.80511,2389.8,2389.6,0.00626946]
[1725558704103,0.3866,2389.8,2389.6,0.00626946]
[1725558704303,0.3866,2389.8,2389.7,0.41852]
[1725558704707,0.3866,2389.8,2389.6,0.00626946]
[1725558704910,0.3866,2389.8,2389.7,0.41852]
[1725558705409,0.00626946,2389.9,2389.8,0.4185]
[1725558706328,0.00626946,2389.9,2389.8,3.6263]
[1725558706527,0.00626946,2389.9,2389.8,18.71656]
[1725558707323,0.79444,2390.8,2390.5,0.41837]
[1725558707628,1.04562,2391.3,2390.0,1.04614]
[1725558707629,0.41832,2390.9,2390.3,3.2078]
[1725558707827,0.3736,2391.0,2390.3,3.2078]
[1725558708033,0.3736,2391.0,2390.4,0.41839]
[1725558708218,0.41834,2390.8,2390.4,0.41839]
[1725558708625,0.41834,2390.8,2390.5,0.41838]
[1725558708824,3.2078,2390.8,2390.1,3.2078]
[1725558709025,0.41839,2390.5,2390.2,0.41842]
[1725558709729,0.41841,2390.4,2390.1,0.41845]
[1725558709932,0.41839,2390.5,2390.2,0.41843]
[1725558711229,0.4184,2390.4,2390.2,0.41843]
[1725558713135,1.046,2390.4,2389.9,3.86]
[1725558713339,0.41845,2390.2,2390.0,0.41846]
[1725558714142,0.80793,2390.3,2390.1,0.41845]
[1725558714334,0.3895,2390.3,2390.2,0.41843]
[1725558717835,0.41846,2390.1,2389.9,0.41848]
[1725558718036,0.41844,2390.2,2389.7,3.2078]
[1725558718242,0.3895,2390.3,2389.9,0.41847]
[1725558718243,0.41846,2390.1,2389.9,0.41847]
[1725558718542,0.3895,2390.3,2389.7,3.2078]
[1725558718543,0.3895,2390.3,2390.2,0.41843]
[1725558719541,0.80792,2390.3,2390.2,0.41843]
[1725558720447,0.3891,2390.6,2390.5,0.41838]
[1725558720638,0.41836,2390.7,2390.6,0.41836]
[1725558720839,0.3837,2390.8,2390.7,0.41835]
[1725558721345,0.00626946,2390.9,2390.8,0.41833]
[1725558721543,0.42459946,2390.9,2390.7,0.41833]
[1725558721740,0.41833,2390.8,2390.7,0.41833]
[1725558724554,0.00626946,2390.9,2390.3,8.47683]
[1725558724739,0.41835,2390.7,2390.6,0.41835]
[1725558724935,4.25367,2390.7,2390.0,7.0678]
[1725558725136,4.25367,2390.7,2390.2,0.41843]
[1725558725137,0.41842,2390.3,2390.2,0.41843]
[1725558725441,0.41844,2390.2,2390.1,0.41844]
[1725558725640,0.41844,2390.2,2390.1,0.41845]
[1725558725841,1.04605,2390.3,2389.7,5.64649]
[1725558726142,0.41846,2390.1,2390.0,0.41845]
[1725558726352,0.41847,2390.0,2389.9,0.41847]
[1725558726537,0.41849,2389.9,2389.8,0.41849]
[1725558727542,0.41849,2389.9,2389.6,3.21406946]
[1725558727543,0.41848,2390.0,2389.9,0.41848]
[1725558727745,3.9725,2390.4,2389.6,3.21406946]
[1725558728042,0.7647,2390.4,2390.3,0.41842]
[1725558728446,0.41838,2390.5,2390.1,1.04613]
[1725558728744,0.7293,2390.8,2390.2,1.04607]
[1725558728953,0.41838,2390.6,2390.5,0.41837]
[1725558729141,0.41838,2390.6,2390.5,0.41838]
[1725558730255,1.77514,2390.8,2390.2,4.25388]
[1725558730256,0.41835,2390.7,2390.6,0.41835]
[1725558733140,0.41841,2390.4,2390.3,0.4184]
[1725558733345,0.41842,2390.3,2390.2,0.41842]
[1725558733545,0.41841,2390.4,2390.3,0.4184]
[1725558733746,1.04597,2390.5,2390.2,0.41842]
[1725558733950,0.41842,2390.3,2390.2,0.41842]
[1725558734450,0.41841,2390.4,2390.3,0.4184]
[1725558736040,0.41839,2390.5,2390.4,0.41839]
[1725558737050,0.7293,2390.8,2390.7,0.41835]
[1725558737453,1.14763,2390.8,2390.7,0.41835]
[1725558740345,0.41836,2390.7,2390.6,0.41835]
[1725558740551,0.00626946,2390.9,2390.8,2.50999]
[1725558740752,0.00626946,2390.9,2390.8,8.50999]
[1725558740947,0.3726,2391.5,2390.8,8.50999]
[1725558740948,0.7395,2391.9,2391.8,0.41815]
[1725558741150,0.3836,2391.9,2391.7,0.41816]
[1725558741449,0.3836,2391.9,2391.1,3.86]
[1725558741651,0.3836,2391.9,2391.2,0.41825]
[1725558741652,0.41823,2391.4,2391.2,0.41825]
[1725558742455,0.00626946,2391.5,2391.4,0.41822]
[1725558742852,0.00626946,2391.5,2391.4,4.59982]
[1725558743957,0.00626946,2391.5,2391.3,0.41823]
[1725558744255,0.00626946,2391.5,2391.2,0.41824]
[1725558744465,0.41826,2391.2,2391.1,0.00626946]
[1725558744762,0.41835,2390.7,2390.5,0.41837]
[1725558745961,3.5684,2391.0,2390.4,0.00626946]
[1725558746152,0.41837,2390.6,2390.4,0.00626946]
[1725558746462,0.41834,2390.8,2390.5,0.41838]
[1725558747059,0.41834,2390.8,2390.4,0.00626946]
[1725558747060,0.41838,2390.5,2390.4,0.00626946]
[1725558747958,0.41837,2390.6,2390.4,0.00626946]
[1725558749162,0.77626,2390.7,2390.4,0.42466946]
[1725558749951,0.41837,2390.6,2390.4,0.42466946]
[1725558750156,0.41838,2390.5,2390.4,0.00626946]
[1725558750353,0.41838,2390.6,2390.4,0.00626946]
[1725558750859,0.77626,2390.7,2390.5,0.41837]
[1725558751155,0.3579,2390.7,2390.6,0.41836]
[1725558751357,0.41836,2390.6,2390.5,0.41837]
[1725558751654,0.41836,2390.6,2390.4,0.42465946]
[1725558751853,0.77626,2390.7,2390.5,0.41838]
[1725558752047,0.41837,2390.6,2390.4,0.42465946]
[1725558752664,0.41837,2390.6,2390.5,0.41838]
[1725558753362,4.60157,2390.6,2390.5,0.41838]
[1725558753658,0.41837,2390.6,2390.5,0.41838]
[1725558754367,0.41838,2390.5,2390.4,0.42465946]
[1725558755663,0.80147,2390.6,2390.5,0.41838]
[1725558756057,0.3579,2390.7,2390.6,0.41836]
[1725558756251,3.5808,2391.3,2390.6,4.90591]
[1725558756459,0.41828,2391.1,2391.0,0.41828]
[1725558756661,1.80052,2391.3,2390.9,0.4183]
[1725558756662,0.4183,2391.0,2390.9,0.4183]
[1725558757256,0.41828,2391.1,2391.0,0.41828]
[1725558757761,4.60068,2391.1,2391.0,0.41828]
[1725558757967,0.41829,2391.0,2390.9,0.4183]
[1725558759267,0.41833,2390.8,2390.7,0.41835]
[1725558759658,0.41832,2390.9,2390.8,0.41832]
[1725558759857,3.9627,2391.3,2390.9,0.41831]
[1725558759858,0.4183,2391.0,2390.9,0.41831]
[1725558760866,0.4183,2391.0,2390.9,0.4183]
[1725558763163,1.17316,2391.3,2391.2,0.41826]
[1725558763367,0.41828,2391.2,2391.1,0.41827]
[1725558763863,0.7549,2391.3,2391.2,0.41826]
[1725558764066,0.3819,2391.3,2391.2,0.41826]
[1725558764760,0.80014,2391.3,2391.2,0.41826]
[1725558764955,0.41823,2391.4,2391.3,0.41823]
[1725558765870,0.42448946,2391.5,2391.4,0.41822]
[1725558766072,0.41823,2391.4,2391.3,0.41823]
[1725558767458,0.42448946,2391.5,2391.4,0.41822]
[1725558768057,0.41825,2391.3,2391.2,0.41824]
[1725558768566,0.41823,2391.4,2391.3,0.41823]
[1725558768964,0.42447946,2391.5,2391.4,0.41822]
[1725558769169,0.00626946,2391.5,2391.4,0.41822]
[1725558770169,0.00626946,2391.5,2391.4,6.69094]
[1725558770470,0.41813,2392.0,2391.4,6.69094]
[1725558770471,0.41813,2392.0,2391.9,0.41812]
[1725558771366,0.41811,2392.1,2392.0,0.41811]
[1725558772071,0.41813,2392.0,2391.9,0.41812]
[1725558773158,0.41815,2391.8,2391.7,0.00626946]
[1725558774167,0.41815,2391.8,2391.7,0.42443946]
[1725558775071,0.41815,2391.8,2391.7,0.00626946]
[1725558775269,0.41815,2391.8,2391.7,0.42443946]
[1725558776365,0.41815,2391.8,2391.7,0.00626946]
[1725558777567,0.41815,2391.8,2391.7,0.42443946]
[1725558778176,0.41815,2391.8,2391.7,0.00626946]
[1725558779066,0.41815,2391.8,2391.7,0.42443946]
[1725558779677,0.41813,2392.0,2391.9,0.41813]
[1725558780070,0.41814,2391.9,2391.8,0.41814]
[1725558780269,1.04526,2392.1,2391.7,0.00626946]
[1725558780467,0.41814,2391.9,2391.8,0.41813]
[1725558780669,0.41814,2391.9,2391.7,0.00626946]
[1725558780670,0.41815,2391.8,2391.7,0.00626946]
[1725558780876,0.41815,2391.8,2391.7,0.42443946]
[1725558781176,0.41815,2391.8,2391.7,0.00626946]
[1725558781377,0.41815,2391.8,2391.7,0.42443946]
[1725558781581,0.41815,2391.8,2391.7,0.00626946]
[1725558782179,1.46354,2391.8,2391.7,0.00626946]
[1725558782473,7.07133,2391.8,2391.7,0.00626946]
[1725558782681,1.46354,2391.8,2391.7,0.00626946]
[1725558783178,7.45683,2391.8,2391.7,0.00626946]
[1725558783377,13.45683,2391.8,2391.7,0.00626946]
[1725558783583,7.45683,2391.8,2391.7,0.00626946]
[1725558783773,13.45683,2391.8,2391.7,0.00626946]
[1725558784875,0.41824,2391.3,2391.2,0.41825]
[1725558785078,0.41824,2391.3,2391.0,3.2078]
[1725558785079,0.41824,2391.4,2391.3,0.41824]
[1725558786278,0.41823,2391.4,2391.3,0.41823]
[1725558787278,0.41825,2391.3,2391.2,0.41825]
[1725558787468,1.46391,2391.2,2391.1,0.00626946]
[1725558787778,6.38761,2391.2,2391.1,0.00626946]
[1725558788181,2.59371,2391.2,2391.1,0.00626946]
[1725558788577,6.77611,2391.2,2391.1,0.00626946]
[1725558789978,2.59371,2391.2,2391.1,0.00626946]
[1725558790183,6.77611,2391.2,2391.1,0.00626946]
[1725558791781,2.82278857,2391.7,2391.4,0.41821]
[1725558791782,0.41821,2391.5,2391.4,0.41821]
[1725558794993,0.8076,2391.6,2391.5,0.41821]
[1725558795278,0.3894,2391.6,2391.5,0.41821]
[1725558795483,0.80759,2391.6,2391.5,0.41821]
[1725558795980,0.3894,2391.6,2391.5,0.41821]
[1725558796178,0.80759,2391.6,2391.5,0.41821]
[1725558796485,0.41823,2391.4,2391.3,0.41823]
[1725558796988,0.41825,2391.3,2391.2,0.41824]
[1725558797291,0.41824,2391.4,2391.3,0.41823]
[1725558798387,1.04557,2391.4,2391.1,0.00626946]
[1725558798582,0.41826,2391.2,2391.1,0.42452946]
[1725558799491,0.41824,2391.3,2391.2,0.41826]
[1725558799684,0.41822,2391.5,2391.4,0.41822]
[1725558799983,0.41822,2391.5,2391.4,0.41821]
[1725558800892,0.3894,2391.6,2391.5,0.41821]
[1725558801091,0.3894,2391.6,2391.4,0.41821]
[1725558801092,0.41821,2391.5,2391.4,0.41821]
[1725558801277,0.3894,2391.6,2391.1,3.62226946]
[1725558801278,1.43488,2391.6,2391.1,3.62226946]
[1725558801482,0.41822,2391.4,2391.1,3.62226946]
[1725558802192,0.41822,2391.5,2391.4,0.41822]
[1725558802785,0.8076,2391.6,2391.5,0.41821]
[1725558802989,0.80759,2391.6,2391.5,0.41821]
[1725558804883,0.80759,2391.6,2391.2,1.04565]
[1725558804884,0.41821,2391.5,2391.4,0.41821]
[1725558805385,0.41823,2391.4,2391.3,0.41823]
[1725558805591,0.41825,2391.3,2391.2,0.41825]
[1725558805990,0.41823,2391.4,2391.3,0.41824]
[1725558806989,0.41825,2391.3,2391.2,0.41825]
[1725558807683,0.41826,2391.2,2391.1,0.00626946]
[1725558808999,0.41826,2391.2,2391.1,0.42454946]
[1725558810893,0.41826,2391.2,2391.1,0.00626946]
[1725558811096,0.41826,2391.2,2391.1,0.42454946]
[1725558811597,0.41826,2391.2,2391.1,0.00626946]
[1725558812298,0.41826,2391.2,2391.1,0.42454946]
[1725558812804,0.41826,2391.2,2391.1,0.00626946]
[1725558813096,0.41826,2391.2,2391.1,0.42454946]
[1725558813296,0.41826,2391.2,2391.1,0.00626946]
[1725558813487,0.77696,2391.2,2391.1,0.00626946]
[1725558814090,7.05066,2391.2,2391.1,0.00626946]
[1725558814391,0.41835,2390.7,2390.6,0.41836]
[1725558814694,0.41834,2390.8,2390.7,0.41835]
[1725558814887,0.78412,2390.9,2390.7,0.41835]
[1725558815092,0.3658,2390.9,2390.8,0.41833]
[1725558815291,0.78412,2390.9,2390.8,0.41833]
[1725558815493,0.41833,2390.8,2390.7,0.41834]
[1725558816094,0.41834,2390.8,2390.6,0.00626946]
[1725558816298,0.41834,2390.8,2390.7,0.41835]
[1725558817195,0.41834,2390.8,2390.6,0.42461946]
[1725558817793,0.41834,2390.8,2390.6,0.00626946]
[1725558817991,0.41834,2390.8,2390.7,0.41835]
[1725558818291,0.41835,2390.7,2390.6,0.42461946]
[1725558818690,0.41835,2390.7,2390.6,0.00626946]
[1725558820086,0.78085,2390.7,2390.6,0.00626946]
[1725558820701,1.82672,2390.7,2390.6,0.00626946]
[1725558820890,0.78085,2390.7,2390.6,0.42462946]
[1725558821402,0.78085,2390.7,2390.6,0.00626946]
[1725558821700,0.41834,2390.8,2390.7,0.41835]
[1725558821897,0.3658,2390.9,2390.6,0.00626946]
[1725558822298,0.41833,2390.8,2390.7,0.41834]
[1725558822490,0.41833,2390.8,2390.6,0.42461946]
[1725558822798,0.41835,2390.7,2390.6,0.42461946]
[1725558825603,0.41834,2390.8,2390.7,0.41834]
[1725558826005,0.41835,2390.7,2390.6,0.42461946]
[1725558826207,0.78412,2390.9,2390.8,0.41833]
[1725558826509,0.41834,2390.8,2390.7,0.41834]
[1725558828001,0.41835,2390.7,2390.6,0.42461946]
[1725558829409,0.41835,2390.7,2390.6,0.00626946]
[1725558830306,0.41835,2390.7,2390.6,0.42462946]
[1725558830495,0.3658,2390.9,2390.6,0.42462946]
[1725558830496,0.41833,2390.8,2390.7,0.41835]
[1725558830696,3.6261,2391.0,2390.9,0.41831]
[1725558830892,0.00626946,2391.1,2391.0,0.41829]
[1725558831099,0.00626946,2391.1,2391.0,3.30829]
[1725558831401,0.00626946,2391.1,2391.0,7.49069]
[1725558831910,0.00626946,2391.1,2391.0,4.60069]
[1725558832202,0.4183,2391.0,2390.8,0.41831]
[1725558832403,0.41832,2390.9,2390.8,0.41832]
[1725558832707,0.3937,2391.0,2390.8,0.41832]
[1725558832708,0.812,2391.0,2390.8,0.41832]
[1725558833098,0.41833,2390.8,2390.7,0.79514]
[1725558833298,0.3937,2391.0,2390.8,0.41833]
[1725558833299,0.41832,2390.9,2390.8,0.41833]
[1725558833708,0.81201,2391.0,2390.8,0.41833]
[1725558834505,0.41831,2390.9,2390.8,0.41833]
[1725558835909,0.3937,2391.0,2390.8,0.41833]
[1725558836112,0.812,2391.0,2390.8,0.41833]
[1725558836614,0.41831,2390.9,2390.8,0.41833]
[1725558836914,0.41833,2390.8,2390.6,2.89626946]
[1725558837206,0.41835,2390.7,2390.6,0.42461946]
[1725558837709,0.41835,2390.7,2390.6,0.00626946]
[1725558837902,0.41835,2390.7,2390.6,0.42462946]
[1725558838098,0.41835,2390.7,2390.6,0.00626946]
[1725558838503,4.67202,2390.7,2390.6,0.00626946]
[1725558838808,4.67202,2390.7,2390.0,5.50378273]
[1725558838809,0.41844,2390.2,2390.0,4.56446]
[1725558839010,0.21255005,2390.8,2389.7,0.3882]
[1725558839011,6.0978,2390.4,2389.7,0.3882]
[1725558839201,0.3613,2390.3,2389.7,0.3882]
[1725558839403,0.41846,2390.1,2389.9,0.41848]
[1725558840006,0.41844,2390.2,2390.0,0.41847]
[1725558840510,0.3613,2390.3,2390.2,0.41843]
[1725558842410,0.77972,2390.3,2390.2,0.41843]
[1725558842605,0.41843,2390.2,2389.8,2.89626946]
[1725558842809,0.3613,2390.3,2389.8,0.00626946]
[1725558843014,0.41849,2389.9,2389.8,0.00626946]
[1725558844116,0.41848,2390.0,2389.8,0.42476946]
[1725558844415,0.41849,2389.9,2389.8,0.42476946]
[1725558844716,0.41849,2389.9,2389.8,0.00626946]
[1725558844915,0.3579,2390.1,2389.8,0.00626946]
[1725558845218,0.41845,2390.2,2390.0,0.41847]
[1725558845716,0.41845,2390.2,2390.0,0.41846]
[1725558845913,0.41847,2390.0,2389.9,0.41848]
[1725558846107,0.41847,2390.0,2389.8,0.42475946]
[1725558846308,0.41847,2390.0,2389.9,0.41849]
[1725558846604,0.41849,2389.9,2389.8,0.00626946]
[1725558846807,0.41848,2390.0,2389.8,0.00626946]
[1725558847014,0.41849,2389.9,2389.8,0.42476946]
[1725558847711,0.41849,2389.9,2389.8,0.00626946]
[1725558848018,0.41846,2390.1,2389.9,0.41847]
[1725558848911,1.76528,2390.3,2389.9,0.41847]
[1725558848912,0.41847,2390.0,2389.9,0.41847]
[1725558849119,0.41847,2390.0,2389.8,0.42475946]
[1725558849423,0.41849,2389.9,2389.8,0.00626946]
[1725558850519,0.41848,2390.0,2389.8,0.42476946]
[1725558850706,0.41849,2389.9,2389.8,0.42476946]
[1725558851514,0.41846,2390.1,2389.8,0.00626946]
[1725558851705,0.41846,2390.1,2389.9,0.41847]
[1725558852719,4.2539,2390.2,2389.8,0.42475946]
[1725558853022,0.41849,2389.9,2389.8,0.00626946]
[1725558853625,3.62629,2389.9,2389.8,0.00626946]
[1725558853813,5.05951,2389.9,2389.8,0.00626946]
[1725558854123,3.62629,2389.9,2389.8,0.42476946]
[1725558854324,3.2078,2389.9,2389.8,0.42476946]
[1725558855013,3.62629,2389.9,2389.8,0.00626946]
[1725558855222,8.85651,2389.9,2389.8,0.00626946]
[1725558855914,0.41858,2389.4,2389.2,4.146]
[1725558856114,3.2078,2389.6,2389.1,3.2078]
[1725558856311,0.8056,2389.3,2388.8,3.2579]
[1725558856716,0.8056,2389.3,2389.0,0.41863]